{"text_format":"1","workbook":"xlsx","n_sheets":2,"sheets":["Hoja1","Hoja2"],"not_rendered":{"charts":0,"images":1,"macros":1,"external_links":0,"defined_names":4,"comments":0,"pivot_tables":0},"unopened":[],"bounds":{"document_bytes":16777216,"sheet_cells":100000,"rows_first":2000,"rows_last":500,"rows_between":2000,"halvings":0,"cell_chars":16384,"cell_head_chars":4096},"cells_cut":0,"cells_raw":0,"read":"whole","date_system":"1900"}

{"sheet":"Hoja1","index":0,"n_rows":56,"n_cols":34,"rows_kept":56,"cut":false,"hidden":false,"merged":[[24,10,24,13],[32,23,32,24],[30,17,30,19],[32,5,32,6],[32,9,32,10],[32,14,32,15],[32,19,32,20],[40,11,40,15],[2,1,2,24],[5,1,5,24],[6,1,6,24],[7,1,7,24],[26,8,26,9],[10,1,10,24],[9,1,9,24],[34,4,34,6],[34,13,34,15],[34,20,34,22],[12,6,12,8],[14,5,14,6],[14,7,14,11],[38,4,38,15],[20,7,20,10],[53,1,53,24],[54,1,54,24],[55,1,55,24],[12,21,12,23],[49,3,49,6],[47,1,47,24],[42,6,42,7],[42,11,42,15],[16,7,16,23],[22,7,22,23],[30,3,30,12],[36,4,36,15],[36,21,36,23],[44,7,44,22],[51,1,51,24],[40,6,40,7]]}
[]
[null,null,null,null,null,null,null,null,null,null,null,null,null,null,null,null,null,null,null,null,null,null,null,null,null,null,null,null,null,null,"Años","Documento","Sexo","Naturalizado"]
[null,"."]
[null,null,null,null,null,null,null,null,null,null,null,null,null,null,null,null,null,null,null,null,null,null,null,null,null,null,null,null,null,null,2016,"L.E.","M","SI"]
[null,null,null,null,null,null,null,null,null,null,null,null,null,null,null,null,null,null,null,null,null,null,null,null,null,null,null,null,null,null,2017,"L.C.","F","NO"]
[null,"PROVINCIA DEL NEUQUEN",null,null,null,null,null,null,null,null,null,null,null,null,null,null,null,null,null,null,null,null,null,null,null,null,null,null,null,null,2018,"D.N.I."]
[null,"CONSEJO PROVINCIAL DE EDUCACIÓN",null,null,null,null,null,null,null,null,null,null,null,null,null,null,null,null,null,null,null,null,null,null,null,null,null,null,null,null,2019]
[null,"JUNTA DE CLASIFICACIÓN AD-HOC DE EDUCACIÓN FÍSICA",null,null,null,null,null,null,null,null,null,null,null,null,null,null,null,null,null,null,null,null,null,null,null,null,null,null,null,null,2020]
[]
[null,"ASPIRANTES A INTERINATOS Y/O SUPLENCIAS"]
[null,"C.E.F. y P.C.E."]
[]
[null,"INSCRIPCIÓN AÑO: ",null,null,null,null,2017,null,null,{"$f":"IF(G13=\"\",\"*\",\"\")","v":""},null,null,null,null,null,null,null,null," LEGAJO Nº",null,null,null,null,null,{"$f":"IF(V13=\"\",\"*\",\"\")","v":"*"}]
[]
[null,"DOCUMENTO:",null,null,null,"D.N.I.",null,null,null,null,null,null,{"$f":"IF(H15=\"\",\"*\",\"\")","v":"*"}]
[]
[null,"APELLIDO Y NOMBRE:",null,null,null,null,null,null,null,null,null,null,null,null,null,null,null,null,null,null,null,null,null,null,{"$f":"IF(H17=\"\",\"*\",\"\")","v":"*"}]
[]
[null,"SEXO: ",null,null,{"$f":"IF(D19=\"\",\"*\",\"\")","v":"*"},"Selecciona lo que corresponda ( M - F )"]
[]
[null,"FECHA DE NACIMIENTO: ",null,null,null,null,null,null,null,null,null,{"$f":"IF(H21=\"\",\"*\",\"\")","v":"*"},"(Formato: DD / MM / AA) "]
[]
[null,"LUGAR DE NACIMIENTO: ",null,null,null,null,null,null,null,null,null,null,null,null,null,null,null,null,null,null,null,null,null,null,{"$f":"IF(H23=\"\",\"*\",\"\")","v":"*"}]
[]
[null,"AÑO RADICACIÓN EN LA PROVINCIA:",null,null,null,null,null,null,null,null,null,null,null,null,{"$f":"IF(K25=\"\",\"*\",\"\")","v":"*"},"(Formato: AAAA) "]
[]
[null,"NATURALIZADO ARGENTINO:",null,null,null,null,null,null,null,null,{"$f":"IF(I27=\"\",\"*\",\"\")","v":"*"},"Selecciona lo que corresponda ( SI - NO )"]
[]
[null,"DOMICILIO:"]
[]
[null,"CALLE: ",null,null,null,null,null,null,null,null,null,null,null,{"$f":"IF(D31=\"\",\"*\",\"\")","v":"*"},"   NÚMERO:",null,null,null,null,null,{"$f":"IF(R31=\"\",\"*\",\"\")","v":"*"}]
[]
[null,"MONOBLOCK",null,null,null,null,null,"     TIRA",null,null,null,"   ENTRADA",null,null,null,null,"      PUERTA",null,null,null,null,"    PISO"]
[]
[null,"MANZANA",null,null,null,null,null,null,"   DEPARTAMENTO",null,null,null,null,null,null,null,null,"    DUPLEX"]
[]
[null,"LOCALIDAD: ",null,null,null,null,null,null,null,null,null,null,null,null,null,null,{"$f":"IF(E37=\"\",\"*\",\"\")","v":"*"},"     COD POSTAL",null,null,null,null,null,null,{"$f":"IF(V37=\"\",\"*\",\"\")","v":"*"}]
[]
[null,"BARRIO:",null,null,null,null,null,null,null,null,null,null,null,null,null,null,{"$f":"IF(E39=\"\",\"*\",\"\")","v":"*"}]
[]
[null,"CARACTERISTICA:",null,null,null,null,null,null,"    TEL. FIJO:",null,null,null,null,null,null,null,{"$f":"IF(L41=\"\",\"*\",\"\")","v":"*"}]
[]
[null,"CARACTERISTICA:",null,null,null,null,null,null,"    CELULAR:",null,null,null,null,null,null,null,{"$f":"IF(L43=\"\",\"*\",\"\")","v":"*"}]
[]
[null,"CORREO ELECTRÓNICO:",null,null,null,null,null,null,null,null,null,null,null,null,null,null,null,null,null,null,null,null,null,{"$f":"IF(H45=\"\",\"*\",\"\")","v":"*"}]
[]
[]
[null,"DECLARO BAJO JURAMENTO QUE TODOS LOS DATOS PRECEDENTES SON EXACTOS"]
[]
[null,"FECHA:",null,null,null,null,null,null,null,null,null,null,"FIRMA:"]
[]
[null,"La planilla de inscripción debe estar impresa en hoja oficio doble faz."]
[null,"OBSERVACIONES:"]
[null,"a) Los aspirantes a INTERINATOS  y/o SUPLENCIAS solo podrán INSCRIBIRSE EN DOS (2) CENTROS"]
[null,"     DE EDUCACIÓN FÍSICA Y EN DOS (2) PLANTAS DE CAMPAMENTOS EDUCATIVOS COMO MÁXIMO. "]
[null,"b) SERÁ RECHAZADA LA INSCRIPCIÓN QUE NO CUMPLA CON ESTOS REQUISITOS."]

{"sheet":"Hoja2","index":1,"n_rows":27,"n_cols":18,"rows_kept":27,"cut":false,"hidden":false,"merged":[[0,10,0,11],[0,1,0,2],[0,3,0,6],[20,1,20,17],[0,16,0,17]]}
[null,"APELLIDO Y NOMBRE: ",null,{"$f":"IF(Hoja1!H17=\"\",\"\",Hoja1!H17)","v":""},null,null,null,"          DOCUMENTO Nº:",null,null,{"$f":"IF(Hoja1!H15=\"\",\"\",Hoja1!H15)","v":""},null,null,null,"   LEGAJO Nº:",null,{"$f":"IF(Hoja1!V13=\"\",\"\",Hoja1!V13)","v":""}]
[]
[null,"C.E.F. Nº","CARGO","COD","TIT","A","AA","B","C","D","E","F","G","H","I","J",null,"TOTAL PUNTOS"]
[]
[]
[]
[]
[]
[]
[]
[]
[]
[]
[null,"P.C.E. Nº","CARGO","COD","TIT","A","AA","B","C","D","E","F","G","H","I","J",null,"TOTAL PUNTOS"]
[]
[]
[]
[]
[]
[]
[null,"Declaro bajo juramento que todos los datos consignados y la documentación que se adjunta son veraces, exactos y que poseo conocimiento del\n instructivo correspondiente y de los términos en los que se enmarca la presente inscripción."]
[]
[null,"Fecha: ",null,null,"         Firma del aspirante:",null,null,null,null,null,null,null,"Aclaración:"]
[]
[null,null,null,null,null,null,null,null,"      Valoró:",null,null,null,null,null,"         Controló:"]
[]
[null,"Observación:   La planilla de inscripción debe estar  impresa en doble faz."]